lending/lending_fUSD_20250408
["ID","MTS","AMOUNT","RATE_DAILY","PERIOD"]
[357532322,1744131095928,-500.0,0.00028493,2]
[357532323,1744131095938,-707.17,0.00028493,2]
[357532324,1744131095949,-500.0,0.00028493,2]
[357532325,1744131095959,-500.0,0.00028493,2]
[357532326,1744131095969,-500.0,0.00028493,2]
[357532327,1744131095979,-500.0,0.00028493,2]
[357532328,1744131095990,-500.0,0.00028493,2]
[357532329,1744131095999,-509.41,0.00028493,2]
[357532330,1744131096011,-500.0,0.00028493,2]
[357532331,1744131096021,-500.0,0.00028493,2]
[357532332,1744131096031,-500.0,0.00028493,2]
[357532333,1744131096044,-1220.84,0.00028493,2]
[357532334,1744131096054,-500.0,0.00028493,2]
[357532335,1744131096064,-500.0,0.00028493,2]
[357532336,1744131096073,-500.0,0.00028493,2]
[357532337,1744131096086,-500.0,0.00028493,2]
[357532338,1744131096096,-500.0,0.00028493,2]
[357532339,1744131096106,-500.0,0.00028493,2]
[357532340,1744131096115,-500.0,0.00028493,2]
[357532341,1744131096127,-500.0,0.00028493,2]
[357532342,1744131096137,-500.0,0.00028493,2]
[357532343,1744131096147,-500.0,0.00028493,2]
[357532344,1744131096158,-229.15111058,0.00028493,2]
[357532345,1744131096168,-500.0,0.00028493,2]
[357532346,1744131096179,-500.0,0.00028493,2]
[357532347,1744131096189,-500.0,0.00028493,2]
[357532348,1744131096205,-500.0,0.00028493,2]
[357532349,1744131096222,-545.03,0.00028493,2]
[357532350,1744131096234,-500.0,0.00028493,2]
[357532351,1744131096251,-500.0,0.00028493,2]
[357532352,1744131096266,-500.0,0.00028493,2]
[357532353,1744131096281,-500.0,0.00028493,2]
[357532354,1744131096299,-500.0,0.00028493,2]
[357532355,1744131096311,-500.0,0.00028493,2]
[357532356,1744131096326,-344.55827856,0.00028493,2]
[357532357,1744131096341,-500.0,0.00028493,2]
[357532358,1744131096357,-500.0,0.00028493,2]
[357532359,1744131096373,-500.0,0.00028493,2]
[357532360,1744131096387,-1019.54,0.00028493,2]
[357532361,1744131096404,-1644.68,0.00028493,2]
[357532362,1744131096419,-538.21,0.00028493,2]
[357532363,1744131096435,-500.0,0.00028493,2]
[357532364,1744131096453,-734.05,0.00028493,2]
[357532365,1744131096471,-500.0,0.00028493,2]
[357532366,1744131096486,-500.0,0.00028493,2]
[357532367,1744131096499,-500.0,0.00028493,2]
[357532368,1744131096512,-1425.74,0.00028493,2]
[357532369,1744131096530,-1187.81,0.00028493,2]
[357532370,1744131096544,-500.0,0.00028493,2]
[357532371,1744131096556,-500.0,0.00028493,2]
[357532372,1744131096570,-500.0,0.00028493,2]
[357532373,1744131096584,-500.0,0.00028493,2]
[357532374,1744131096596,-500.0,0.00028493,2]
[357532375,1744131096608,-1273.1,0.00028493,2]
[357532376,1744131096621,-500.0,0.00028493,2]
[357532377,1744131096634,-1048.09,0.00028493,2]
[357532378,1744131096647,-500.0,0.00028493,2]
[357532379,1744131096659,-531.84,0.00028493,2]
[357532380,1744131096672,-500.0,0.00028493,2]
[357532381,1744131096684,-500.0,0.00028493,2]
[357532382,1744131096697,-1739.87,0.00028493,2]
[357532383,1744131096709,-500.0,0.00028493,2]
[357532384,1744131096722,-686.22,0.00028493,2]
[357532385,1744131096734,-643.82,0.00028493,2]
[357532386,1744131096747,-589.26,0.00028493,2]
[357532387,1744131096760,-530.29,0.00028493,2]
[357532388,1744131096772,-913.6,0.00028493,2]
[357532389,1744131096785,-500.0,0.00028493,2]
[357532390,1744131096799,-500.0,0.00028493,2]
[357532391,1744131096811,-541.35,0.00028493,2]
[357532392,1744131096824,-500.0,0.00028493,2]
[357532393,1744131096836,-500.0,0.00028493,2]
[357532394,1744131096849,-500.0,0.00028493,2]
[357532395,1744131096861,-524.83,0.00028493,2]
[357532396,1744131096873,-853.97,0.00028493,2]
[357532397,1744131096886,-500.0,0.00028493,2]
[357532398,1744131096898,-500.0,0.00028493,2]
[357532399,1744131096911,-500.0,0.00028493,2]
[357532400,1744131096923,-500.0,0.00028493,2]
[357532401,1744131096935,-500.0,0.00028493,2]
[357532402,1744131096949,-1206.08,0.00028493,2]
[357532403,1744131096961,-500.0,0.00028493,2]
[357532404,1744131096974,-500.0,0.00028493,2]
[357532405,1744131096987,-500.0,0.00028493,2]
[357532406,1744131097002,-839.17,0.00028493,2]
[357532407,1744131097013,-500.0,0.00028493,2]
[357532408,1744131097026,-500.0,0.00028493,2]
[357532409,1744131097040,-500.0,0.00028493,2]
[357532410,1744131097053,-500.0,0.00028493,2]
[357532411,1744131097066,-1079.35,0.00028493,2]
[357532412,1744131097082,-500.0,0.00028493,2]
[357532413,1744131097095,-500.0,0.00028493,2]
[357532414,1744131097107,-500.0,0.00028493,2]
[357532415,1744131097120,-500.0,0.00028493,2]
[357532416,1744131097133,-500.0,0.00028493,2]
[357532417,1744131097146,-646.6,0.00028493,2]
[357532418,1744131097159,-500.0,0.00028493,2]
[357532419,1744131097173,-500.0,0.00028493,2]
[357532420,1744131097186,-1392.68,0.00028493,2]
[357532421,1744131097198,-1047.48,0.00028493,2]
[357532422,1744131097211,-1013.5,0.00028493,2]
[357532423,1744131097224,-500.0,0.00028493,2]
[357532424,1744131097236,-500.0,0.00028493,2]
[357532425,1744131097248,-500.0,0.00028493,2]
[357532426,1744131097261,-1138.94,0.00028493,2]
[357532427,1744131097273,-500.0,0.00028493,2]
[357532428,1744131097286,-500.0,0.00028493,2]
[357532429,1744131097301,-500.0,0.00028493,2]
[357532430,1744131097315,-571.65,0.00028493,2]
[357532431,1744131097327,-500.0,0.00028493,2]
[357532432,1744131097341,-500.0,0.00028493,2]
[357532433,1744131097354,-500.0,0.00028493,2]
[357532434,1744131097367,-500.0,0.00028493,2]
[357532435,1744131097380,-985.93,0.00028493,2]
[357532436,1744131097393,-500.0,0.00028493,2]
[357532437,1744131097407,-500.0,0.00028493,2]
[357532438,1744131097421,-500.0,0.00028493,2]
[357532439,1744131097433,-500.0,0.00028493,2]
[357532440,1744131097446,-504.78093607,0.00028493,2]
[357532441,1744131097459,-500.0,0.00028493,2]
[357532442,1744131097472,-500.0,0.00028493,2]
[357532443,1744131097485,-500.0,0.00028493,2]
[357532444,1744131097498,-500.0,0.00028493,2]
[357532445,1744131097511,-893.75,0.00028493,2]
[357532446,1744131097524,-500.0,0.00028493,2]
[357532447,1744131097537,-882.81,0.00028493,2]
[357532448,1744131097551,-635.65,0.00028493,2]
[357532449,1744131097564,-500.0,0.00028493,2]
[357532450,1744131097577,-500.0,0.00028493,2]
[357532451,1744131097590,-554.86,0.00028493,2]
[357532452,1744131097604,-500.0,0.00028493,2]
[357532453,1744131097617,-1285.07,0.00028493,2]
[357532454,1744131097630,-500.0,0.00028493,2]
[357532455,1744131097643,-500.0,0.00028493,2]
[357532456,1744131097656,-815.01,0.00028493,2]
[357532457,1744131097669,-2250.35,0.00028493,2]
[357532458,1744131097682,-828.56,0.00028493,2]
[357532459,1744131097695,-500.0,0.00028493,2]
[357532460,1744131097709,-340.81494432,0.00028493,2]
[357532461,1744131097722,-553.89,0.00028493,2]
[357532462,1744131097735,-554.97,0.00028493,2]
[357532463,1744131097748,-571.07,0.00028493,2]
[357532464,1744131097762,-500.0,0.00028493,2]
[357532465,1744131097774,-500.0,0.00028493,2]
[357532466,1744131097790,-635.52,0.00028493,2]
[357532467,1744131097803,-500.0,0.00028493,2]
[357532468,1744131097815,-500.0,0.00028493,2]
[357532469,1744131097828,-729.33,0.00028493,2]
[357532470,1744131097840,-642.06769027,0.00028493,2]
[357532471,1744131097854,-500.0,0.00028493,2]
[357532472,1744131097867,-1155.37,0.00028493,2]
[357532473,1744131097879,-500.0,0.00028493,2]
[357532474,1744131097892,-683.43,0.00028493,2]
[357532475,1744131097905,-500.0,0.00028493,2]
[357532476,1744131097918,-659.52,0.00028493,2]
[357532477,1744131097931,-516.7606819,0.00028493,2]
[357532478,1744131097944,-959.29,0.00028493,2]
[357532479,1744131097957,-500.0,0.00028493,2]
[357532480,1744131097976,-1042.58,0.00028493,2]
[357532481,1744131097989,-500.0,0.00028493,2]
[357532482,1744131098001,-500.0,0.00028493,2]
[357532483,1744131098013,-502.74,0.00028493,2]
[357532484,1744131098027,-500.0,0.00028493,2]
[357532485,1744131098040,-500.0,0.00028493,2]
[357532486,1744131098053,-500.0,0.00028493,2]
[357532487,1744131098067,-500.0,0.00028493,2]
[357532488,1744131098083,-500.0,0.00028493,2]
[357532489,1744131098098,-500.0,0.00028493,2]
[357532490,1744131098111,-500.0,0.00028493,2]
[357532491,1744131098127,-651.5,0.00028493,2]
[357532492,1744131098141,-500.0,0.00028493,2]
[357532493,1744131098155,-500.0,0.00028493,2]
[357532494,1744131098170,-500.0,0.00028493,2]
[357532495,1744131098184,-594.23,0.00028493,2]
[357532496,1744131098197,-594.32,0.00028493,2]
[357532497,1744131098211,-509.78577047,0.00028493,2]
[357532498,1744131098225,-764.58,0.00028493,2]
[357532499,1744131098237,-1066.53,0.00028493,2]
[357532500,1744131098251,-554.84,0.00028493,2]
[357532501,1744131098264,-500.0,0.00028493,2]
[357532502,1744131098277,-500.0,0.00028493,2]
[357532503,1744131098291,-784.39,0.00028493,2]
[357532504,1744131098304,-508.06,0.00028493,2]
[357532505,1744131098317,-513.92,0.00028493,2]
[357532506,1744131098330,-500.0,0.00028493,2]
[357532507,1744131098343,-500.0,0.00028493,2]
[357532508,1744131098357,-2000.0,0.00028493,2]
[357532509,1744131098370,-500.0,0.00028493,2]
[357532510,1744131098383,-568.34,0.00028493,2]
[357532511,1744131098396,-1465.9,0.00028493,2]
[357532512,1744131098408,-583.31,0.00028493,2]
[357532513,1744131098420,-500.0,0.00028493,2]
[357532514,1744131098433,-627.5,0.00028493,2]
[357532515,1744131098445,-500.0,0.00028493,2]
[357532516,1744131098458,-500.0,0.00028493,2]
[357532517,1744131098471,-500.0,0.00028493,2]
[357532518,1744131098484,-500.0,0.00028493,2]
[357532519,1744131098496,-500.0,0.00028493,2]
[357532520,1744131098509,-570.96,0.00028493,2]
[357532521,1744131098521,-500.0,0.00028493,2]
[357532522,1744131098534,-702.55,0.00028493,2]
[357532523,1744131098549,-500.0,0.00028493,2]
[357532524,1744131098561,-500.0,0.00028493,2]
[357532525,1744131098573,-500.0,0.00028493,2]
[357532526,1744131098585,-500.0,0.00028493,2]
[357532527,1744131098597,-500.0,0.00028493,2]
[357532528,1744131098609,-627.68,0.00028493,2]
[357532529,1744131098622,-500.0,0.00028493,2]
[357532530,1744131098634,-500.0,0.00028493,2]
[357532531,1744131098647,-500.0,0.00028493,2]
[357532532,1744131098660,-537.7,0.00028493,2]
[357532533,1744131098673,-600.21,0.00028493,2]
[357532534,1744131098685,-717.93,0.00028493,2]
[357532535,1744131098699,-525.64,0.00028493,2]
[357532536,1744131098711,-683.46,0.00028493,2]
[357532537,1744131098724,-500.0,0.00028493,2]
[357532538,1744131098737,-500.0,0.00028493,2]
[357532539,1744131098750,-1354.7,0.00028493,2]
[357532540,1744131098762,-500.0,0.00028493,2]
[357532541,1744131098774,-500.0,0.00028493,2]
[357532542,1744131098787,-748.01,0.00028493,2]
[357532543,1744131098804,-243.85162245,0.00028493,2]
[357532544,1744131099153,-1010.61,0.00028493,2]
[357532545,1744131099164,-500.0,0.00028493,2]
[357532546,1744131099174,-500.0,0.00028493,2]
[357532547,1744131099184,-564.61,0.00028493,2]
[357532548,1744131099193,-500.0,0.00028493,2]
[357532549,1744131099202,-500.0,0.00028493,2]
[357532550,1744131099211,-500.0,0.00028493,2]
[357532551,1744131099223,-500.0,0.00028493,2]
[357532552,1744131099232,-500.0,0.00028493,2]
[357532553,1744131099241,-790.51,0.00028493,2]
[357532554,1744131099251,-500.0,0.00028493,2]
[357532555,1744131099260,-500.0,0.00028493,2]
[357532556,1744131099269,-1476.66,0.00028493,2]
[357532557,1744131099278,-500.0,0.00028493,2]
[357532558,1744131099288,-500.0,0.00028493,2]
[357532559,1744131099299,-655.26,0.00028493,2]
[357532560,1744131099311,-500.0,0.00028493,2]
[357532561,1744131099320,-737.15,0.00028493,2]
[357532562,1744131099329,-500.0,0.00028493,2]
[357532563,1744131099339,-539.63,0.00028493,2]
[357532564,1744131099348,-500.0,0.00028493,2]
[357532565,1744131099357,-500.0,0.00028493,2]
[357532566,1744131099367,-703.81,0.00028493,2]
[357532567,1744131099376,-677.2,0.00028493,2]
[357532568,1744131099386,-959.99,0.00028493,2]
[357532569,1744131099395,-704.21,0.00028493,2]
[357532570,1744131099404,-641.96,0.00028493,2]
[357532571,1744131099413,-505.48,0.00028493,2]
[357532572,1744131099422,-932.66,0.00028493,2]
[357532573,1744131099432,-812.56,0.00028493,2]
[357532574,1744131099441,-1465.75,0.00028493,2]
[357532575,1744131099450,-580.15,0.00028493,2]
[357532576,1744131099459,-888.6,0.00028493,2]
[357532577,1744131099469,-545.23,0.00028493,2]
[357532578,1744131099478,-889.0,0.00028493,2]
[357532579,1744131099487,-2260.02,0.00028493,2]
[357532580,1744131099496,-794.37,0.00028493,2]
[357532581,1744131099506,-500.0,0.00028493,2]
[357532582,1744131099515,-613.35,0.00028493,2]
[357532583,1744131099524,-567.81,0.00028493,2]
[357532584,1744131099533,-500.0,0.00028493,2]
[357532585,1744131099546,-808.98,0.00028493,2]
[357532586,1744131099555,-845.46,0.00028493,2]
[357532587,1744131099565,-500.0,0.00028493,2]
[357532588,1744131099575,-500.0,0.00028493,2]
[357532589,1744131099584,-593.3,0.00028493,2]
[357532590,1744131099594,-500.0,0.00028493,2]
[357532591,1744131099603,-581.16,0.00028493,2]
[357532592,1744131099611,-500.0,0.00028493,2]
[357532593,1744131099621,-500.0,0.00028493,2]
[357532594,1744131099630,-878.06,0.00028493,2]
[357532595,1744131099639,-1056.72,0.00028493,2]
[357532596,1744131099650,-500.0,0.00028493,2]
[357532597,1744131099659,-500.0,0.00028493,2]
[357532598,1744131099670,-1037.85,0.00028493,2]
[357532599,1744131099680,-624.4,0.00028493,2]
[357532600,1744131099689,-500.0,0.00028493,2]
[357532601,1744131099699,-500.0,0.00028493,2]
[357532602,1744131099708,-500.0,0.00028493,2]
[357532603,1744131099718,-500.0,0.00028493,2]
[357532604,1744131099728,-547.36,0.00028493,2]
[357532605,1744131099737,-500.0,0.00028493,2]
[357532606,1744131099747,-500.0,0.00028493,2]
[357532607,1744131099756,-500.0,0.00028493,2]
[357532608,1744131099766,-1221.73,0.00028493,2]
[357532609,1744131099776,-500.0,0.00028493,2]
[357532610,1744131099786,-500.0,0.00028493,2]
[357532611,1744131099798,-541.77,0.00028493,2]
[357532612,1744131099809,-1049.21,0.00028493,2]
[357532613,1744131099819,-500.0,0.00028493,2]
[357532614,1744131099828,-833.03,0.00028493,2]
[357532615,1744131099838,-500.0,0.00028493,2]
[357532616,1744131099847,-947.72,0.00028493,2]
[357532617,1744131099857,-915.59,0.00028493,2]
[357532618,1744131099866,-151.0,0.00028493,7]
[357532619,1744131099876,-500.0,0.00028493,2]
[357532620,1744131099885,-500.0,0.00028493,2]
[357532621,1744131099895,-151.0,0.00028493,7]
[357532622,1744131099904,-2154.22,0.00028493,2]
[357532623,1744131099914,-151.0,0.00028493,7]
[357532624,1744131099924,-234.893124,0.00028493,7]
[357532625,1744131099933,-500.0,0.00028493,2]
[357532626,1744131099943,-715.09,0.00028493,2]
[357532627,1744131099953,-681.07,0.00028493,2]
[357532628,1744131099962,-806.29,0.00028493,2]
[357532629,1744131099972,-500.0,0.00028493,2]
[357532630,1744131099981,-596.17,0.00028493,2]
[357532631,1744131099990,-500.0,0.00028493,2]
[357532632,1744131099999,-643.21,0.00028493,2]
[357532633,1744131100009,-623.11,0.00028493,2]
[357532634,1744131100018,-895.87,0.00028493,2]
[357532635,1744131100027,-591.63,0.00028493,2]
[357532636,1744131100037,-500.0,0.00028493,2]
[357532637,1744131100048,-530.24794474,0.00028493,2]
[357532638,1744131100057,-840.88,0.00028493,2]
[357532639,1744131100066,-500.0,0.00028493,2]
[357532640,1744131100077,-500.0,0.00028493,2]
[357532641,1744131100088,-500.0,0.00028493,2]
[357532642,1744131100097,-915.65,0.00028493,2]
[357532643,1744131100107,-500.0,0.00028493,2]
[357532644,1744131100116,-151.0,0.00028493,7]
[357532645,1744131100126,-2601.54,0.00028493,2]
[357532646,1744131100135,-500.0,0.00028493,2]
[357532647,1744131100145,-6189.26,0.00028493,2]
[357532648,1744131100155,-1470.66,0.00028493,2]
[357532649,1744131100167,-500.0,0.00028493,2]
[357532650,1744131100178,-500.0,0.00028493,2]
[357532651,1744131100188,-1161.33,0.00028493,2]
[357532652,1744131100198,-557.06,0.00028493,2]
[357532653,1744131100207,-500.0,0.00028493,2]
[357532654,1744131100217,-500.0,0.00028493,2]
[357532655,1744131100227,-748.03,0.00028493,2]
[357532656,1744131100238,-1784.68,0.00028493,2]
[357532657,1744131100248,-500.0,0.00028493,2]
[357532658,1744131100258,-500.0,0.00028493,2]
[357532659,1744131100269,-736.96,0.00028493,2]
[357532660,1744131100280,-802.54,0.00028493,2]
[357532661,1744131100293,-500.0,0.00028493,2]
[357532662,1744131100306,-500.0,0.00028493,2]
[357532663,1744131100316,-500.0,0.00028493,2]
[357532664,1744131100326,-528.16,0.00028493,2]
[357532665,1744131100336,-1759.78,0.00028493,2]
[357532666,1744131100346,-880.64,0.00028493,2]
[357532667,1744131100357,-878.89,0.00028493,2]
[357532668,1744131100367,-500.0,0.00028493,2]
[357532669,1744131100376,-939.58,0.00028493,2]
[357532670,1744131100386,-735.03,0.00028493,2]
[357532671,1744131100397,-524.35,0.00028493,2]
[357532672,1744131100406,-500.0,0.00028493,2]
[357532673,1744131100416,-500.0,0.00028493,2]
[357532674,1744131100426,-500.0,0.00028493,2]
[357532675,1744131100437,-1127.76,0.00028493,2]
[357532676,1744131100448,-234.77632016,0.00028493,2]
[357532677,1744131100457,-500.0,0.00028493,2]
[357532678,1744131100468,-500.0,0.00028493,2]
[357532679,1744131100478,-950.17,0.00028493,2]
[357532680,1744131100487,-1017.57,0.00028493,2]
[357532681,1744131100497,-500.0,0.00028493,2]
[357532682,1744131100507,-6178.64,0.00028493,2]
[357532683,1744131100517,-396.28,0.00028493,2]
[357532684,1744131100528,-513.55,0.00028493,2]
[357532685,1744131100538,-500.0,0.00028493,2]
[357532686,1744131100555,-1089.76,0.00028493,2]
[357532687,1744131100566,-357.80675339,0.00028493,2]
[357532688,1744131100577,-549.65,0.00028493,2]
[357532689,1744131100588,-578.6,0.00028493,2]
[357532690,1744131100598,-841.6,0.00028493,2]
[357532691,1744131100609,-1940.65,0.00028493,2]
[357532692,1744131100619,-671.05,0.00028493,2]
[357532693,1744131100629,-3839.98,0.00028493,2]
[357532694,1744131100639,-500.0,0.00028493,2]
[357532695,1744131100649,-500.0,0.00028493,2]
[357532696,1744131100660,-558.9,0.00028493,2]
[357532697,1744131100671,-500.0,0.00028493,2]
[357532698,1744131100681,-1739.52,0.00028493,2]
[357532699,1744131100691,-500.0,0.00028493,2]
[357532700,1744131100702,-500.0,0.00028493,2]
[357532701,1744131100712,-500.0,0.00028493,2]
[357532702,1744131100721,-180.004315,0.00028493,7]
[357532703,1744131100730,-180.004315,0.00028493,7]
[357532704,1744131100740,-853.97,0.00028493,2]
[357532705,1744131100750,-734.69,0.00028493,2]
[357532706,1744131100760,-727.58,0.00028493,2]
[357532707,1744131100770,-500.0,0.00028493,2]
[357532708,1744131100780,-1008.41,0.00028493,2]
[357532709,1744131100790,-500.0,0.00028493,2]
[357532710,1744131100808,-500.0,0.00028493,2]
[357532711,1744131100818,-180.004315,0.00028493,7]
[357532712,1744131100828,-180.004315,0.00028493,7]
[357532713,1744131100838,-990.1,0.00028493,2]
[357532714,1744131100848,-500.0,0.00028493,2]
[357532715,1744131100858,-737.46,0.00028493,2]
[357532716,1744131100869,-880.15,0.00028493,2]
[357532717,1744131100879,-825.98,0.00028493,2]
[357532718,1744131100889,-500.0,0.00028493,2]
[357532719,1744131100900,-872.33,0.00028493,2]
[357532720,1744131100910,-506.13,0.00028493,2]
[357532721,1744131100920,-544.36692664,0.00028493,2]
[357532722,1744131100930,-2261.1,0.00028493,2]
[357532723,1744131100940,-500.0,0.00028493,2]
[357532724,1744131100950,-500.0,0.00028493,2]
[357532725,1744131100960,-1830.5,0.00028493,2]
[357532726,1744131100970,-2351.91,0.00028493,2]
[357532727,1744131100979,-500.0,0.00028493,2]
[357532728,1744131100988,-727.88,0.00028493,2]
[357532729,1744131100998,-986.07,0.00028493,2]
[357532730,1744131101008,-1859.52,0.00028493,2]
[357532731,1744131101017,-665.51,0.00028493,2]
[357532732,1744131101027,-593.3,0.00028493,2]
[357532733,1744131101036,-500.0,0.00028493,2]
[357532734,1744131101048,-500.0,0.00028493,2]
[357532735,1744131101058,-1483.68,0.00028493,2]
[357532736,1744131101067,-500.0,0.00028493,2]
[357532737,1744131101080,-500.0,0.00028493,2]
[357532738,1744131101090,-4169.04,0.00028493,2]
[357532739,1744131101099,-1258.57,0.00028493,2]
[357532740,1744131101109,-500.0,0.00028493,2]
[357532741,1744131101119,-524.58,0.00028493,2]
[357532742,1744131101128,-500.0,0.00028493,2]
[357532743,1744131101140,-646.63,0.00028493,2]
[357532744,1744131101149,-500.0,0.00028493,2]
[357532745,1744131101160,-500.0,0.00028493,2]
[357532746,1744131101169,-808.53,0.00028493,2]
[357532747,1744131101179,-1146.51,0.00028493,2]
[357532748,1744131101188,-500.0,0.00028493,2]
[357532749,1744131101198,-535.91,0.00028493,2]
[357532750,1744131101207,-24279.06,0.00028493,2]
[357532751,1744131101217,-500.0,0.00028493,2]
[357532752,1744131101227,-325.70435766,0.00028493,2]
[357532753,1744131101236,-500.0,0.00028493,2]
[357532754,1744131101246,-500.0,0.00028493,2]
[357532755,1744131101256,-500.0,0.00028493,2]
[357532756,1744131101266,-500.0,0.00028493,2]
[357532757,1744131101275,-548.84688035,0.00028493,2]
[357532758,1744131101285,-500.0,0.00028493,2]
[357532759,1744131101299,-632.96,0.00028493,2]
[357532760,1744131101309,-1842.22,0.00028493,2]
[357532761,1744131101318,-500.0,0.00028493,2]
[357532762,1744131101328,-892.34,0.00028493,2]
[357532763,1744131101338,-921.97,0.00028493,2]
[357532764,1744131101348,-575.39,0.00028493,2]
[357532765,1744131101358,-735.43,0.00028493,2]
[357532766,1744131101368,-500.0,0.00028493,2]
[357532767,1744131101377,-580.0,0.00028493,2]
[357532768,1744131101387,-500.0,0.00028493,2]
[357532769,1744131101396,-500.0,0.00028493,2]
[357532770,1744131101406,-1216.92,0.00028493,2]
[357532771,1744131101416,-589.43,0.00028493,2]
[357532772,1744131101425,-500.0,0.00028493,2]
[357532773,1744131101435,-500.0,0.00028493,2]
[357532774,1744131101445,-500.0,0.00028493,2]
[357532775,1744131101455,-500.0,0.00028493,2]
[357532776,1744131101465,-500.0,0.00028493,2]
[357532777,1744131101476,-646.32,0.00028493,2]
[357532778,1744131101485,-1299.3,0.00028493,2]
[357532779,1744131101495,-500.0,0.00028493,2]
[357532780,1744131101505,-616.22,0.00028493,2]
[357532781,1744131101515,-4391.56,0.00028493,2]
[357532782,1744131101524,-649.62417422,0.00028493,2]
[357532783,1744131101534,-735.03,0.00028493,2]
[357532784,1744131101550,-500.0,0.00028493,2]
[357532785,1744131101560,-830.9,0.00028493,2]
[357532786,1744131101571,-573.44,0.00028493,2]
[357532787,1744131101581,-542.44,0.00028493,2]
[357532788,1744131101592,-1398.27,0.00028493,2]
[357532789,1744131101602,-500.0,0.00028493,2]
[357532790,1744131101613,-500.0,0.00028493,2]
[357532791,1744131101623,-511.80174003,0.00028493,2]
[357532792,1744131101632,-535.94557072,0.00028493,2]
[357532793,1744131101642,-500.0,0.00028493,2]
[357532794,1744131101652,-763.62,0.00028493,2]
[357532795,1744131101662,-506.3541293,0.00028493,2]
[357532796,1744131101671,-745.57,0.00028493,2]
[357532797,1744131101681,-500.0,0.00028493,2]
[357532798,1744131101692,-1043.21,0.00028493,2]
[357532799,1744131101702,-812.8,0.00028493,2]
[357532800,1744131101712,-500.0,0.00028493,2]
[357532801,1744131101722,-508.79732924,0.00028493,2]
[357532802,1744131101731,-500.0,0.00028493,2]
[357532803,1744131101741,-836.32,0.00028493,2]
[357532804,1744131101751,-500.0,0.00028493,2]
[357532805,1744131101762,-813.0,0.00028493,2]
[357532806,1744131101772,-500.0,0.00028493,2]
[357532807,1744131101783,-500.0,0.00028493,2]
[357532808,1744131101801,-500.0,0.00028493,2]
[357532809,1744131101811,-684.15,0.00028493,2]
[357532810,1744131101821,-1564.46,0.00028493,2]
[357532811,1744131101831,-984.76,0.00028493,2]
[357532812,1744131101841,-615.97,0.00028493,2]
[357532813,1744131101851,-630.49,0.00028493,2]
[357532814,1744131101861,-780.29,0.00028493,2]
[357532815,1744131101872,-500.0,0.00028493,2]
[357532816,1744131101883,-794.86,0.00028493,2]
[357532817,1744131101893,-918.03,0.00028493,2]
[357532818,1744131101903,-6319.24,0.00028493,2]
[357532819,1744131101913,-929.59,0.00028493,2]
[357532820,1744131101923,-1679.19,0.00028493,2]
[357532821,1744131101933,-507.12353389,0.00028493,2]